Cogmind - Beta 15 *** ADVENTURER MODE // 2025.08.25 @ 23:37:22 Player: Plaidstone Result: Destroyed by P6-M5S(R) with Subdweller Machine Gun Performance ------------- Evolutions (0) 0 Regions Visited (3) 600 Robots Destroyed (26) 130 Value Destroyed (823) 823 Prototype IDs (13) 260 Alien Tech Used (0) 0 Bonus (0) 0 TOTAL SCORE: 1813 Bonus ------- None Cogmind --------- Core Integrity 0/250 Matter 261/300 Energy 180/180 System Corruption 0% Temperature Cool (0) Movement Treading (560) Ox4 Location -10/Subcaves Parts ------- > --- POWER (1) -------- Meta Core > --- PROPULSION (2+1) - Spiked Treads Subdweller Monowheel (+) > --- UTILITY (2+1) ---- Huge Storage Unit > --- WEAPON (2+1) ----- Subdweller Machine Gun Battle Cannon > --- INVENTORY (25) --- Medium Matter Pod (100) Hardened Medium Armor Plating Hacking Suite Rainbow Chip Medium Laser Subdweller Beam Cannon Battle Rifle Heavy Assault Cannon Dirty Datajack (20) SUBCON Basin (Full) Peak State ------------ > --- POWER ------------ Meta Core > --- PROPULSION ------- Light Treads Subdweller Monowheel Subdweller Monowheel > --- UTILITY ---------- Huge Storage Unit Hardened Medium Armor Plating > --- WEAPON ----------- Subdweller Beam Cannon Subdweller Machine Gun > --- INVENTORY -------- Subdweller Monowheel Medium Matter Pod Hardened Medium Armor Plating Hacking Suite Rainbow Chip Medium Laser Heavy Assault Cannon Grenade Launcher Grenade Launcher SUBCON Basin [Rating: 47] Favorites ----------- Power Ion Engine Engine Ion Engine Power Core Meta Core Propulsion Light Treads Treads Light Treads Wheel Subdweller Monowheel Utility Huge Storage Unit Storage Huge Storage Unit Protection Propulsion Shielding Weapon Medium Laser Energy Gun Medium Laser Energy Cannon Subdweller Beam Cannon Ballistic Gun Subdweller Machine Gun Ballistic Cannon Battle Cannon Launcher Grenade Launcher Special Weapon Mining Laser Build | -11 -10 -10 -10 ------- Run | Yrd Mat Min Sub Slots Evolved . | . . . . Power . | . . . . Propulsion . | . . . . Utility . | . . . . Weapon . | . . . . Parts Attached 33 | 6 6 . 21 Power 4 | 1 . . 3 Engine 3 | 1 . . 2 Core 1 | . . . 1 Reactor . | . . . . Propulsion 11 | 2 1 . 8 Treads 3 | 1 . . 2 Leg . | . . . . Wheel 8 | 1 1 . 6 Hover . | . . . . Flight . | . . . . Utility 7 | 1 5 . 1 Device . | . . . . Storage 5 | 1 4 . . Processor . | . . . . Hackware . | . . . . Protection 2 | . 1 . 1 Artifact . | . . . . Weapon 11 | 2 . . 9 Energy Gun 3 | 1 . . 2 Energy Cannon 1 | . . . 1 Ballistic Gun 4 | 1 . . 3 Ballistic Cannon 1 | . . . 1 Launcher 1 | . . . 1 Special Weapon 1 | . . . 1 Impact Weapon . | . . . . Slashing Weapon . | . . . . Piercing Weapon . | . . . . Special Melee Weapon . | . . . . Unidentified Prototypes . | . . . . Parts Lost 8 | . . . 8 Power 2 | . . . 2 Propulsion 3 | . . . 3 Utility 2 | . . . 2 Weapon 1 | . . . 1 Highest Loss Streak 2 | . . . 2 To Critical Strikes . | . . . . Average Backups 11 | 3 8 14 11 Power . | . 1 1 . Propulsion 1 | 1 2 2 1 Utility 3 | . . 2 4 Weapon 6 | 1 5 8 6 Tool/Special . | . . . . Unused Backups 11 | . . . 11 Power . | . . . . Propulsion . | . . . . Utility 4 | . . . 4 Weapon 6 | . . . 6 Tool/Special 1 | . . . 1 Average Slot Usage (%) 89 | . 99 100 85 Engine 7 | . 14 14 5 Core 4 | . . . 5 Treads 13 | . 14 14 12 Wheel 14 | . 14 14 14 Storage 12 | . 14 14 11 Protection 12 | . 13 14 11 Energy Gun 8 | . 14 14 6 Energy Cannon 2 | . . . 3 Ballistic Gun 12 | . 14 14 11 Peak Build Rating 47 | 6 8 9 47 Average Rating 25 | 3 7 8 32 On Entrance 5 | . 6 8 9 Naked Turns . | . . . . Heaviest Build 106 | 14 90 90 106 Greatest Support 40 | 20 16 10 40 Greatest Overweight (x) 30 | 1 8 8 30 Average Overweight (x) 5 | . 4 8 5 Largest Inventory Capacity 25 | 8 25 25 25 Average Capacity 24 | 7 21 25 25 Most Carried 25 | 7 11 17 25 Average Carried 19 | 3 8 14 22 Final Capacity 25 | 8 25 25 25 Final Carried 25 | 4 11 17 25 Class Distribution -------------------- 100% | Mutant Dominant Class ---------------- Mutant | -10/Materials Mutant | -10/Mines Mutant | -10/Subcaves Resources | -11 -10 -10 -10 ----------- Run | Yrd Mat Min Sub Matter Collected 1057 | 212 151 112 582 Remotely . | . . . . Salvage Created 930 | . 151 91 688 Parts 56 | . 12 6 38 Haulers Intercepted . | . . . . Recyclers Shooed . | . . . . Parts Field Recycled . | . . . . Retrieved Matter . | . . . . Parts Self-Destructed 16 | . . . 16 Prevented . | . . . . Kills | -11 -10 -10 -10 ------- Run | Yrd Mat Min Sub Combat Hostiles Destroyed 24 | . 4 4 16 Guns 20 | . 4 4 12 Cannons 3 | . . . 3 Classes Destroyed 5 | . 1 1 3 Turret 2 | . . . 2 Swarmer 6 | . . 3 3 Grunt 5 | . 4 1 . Artisan 1 | . . . 1 Subdweller 13 | . . . 13 Best Kill Streak 3 | . 2 3 3 Combat Bots Only 3 | . 2 3 3 Max Kills in Single Turn 1 | . 1 1 1 Gunslinging . | . . . . Exploded . | . . . . Melee . | . . . . Uniques/NPCs Destroyed . | . . . . Combat | -11 -10 -10 -10 -------- Run | Yrd Mat Min Sub Hostile Shots Fired 171 | . 19 14 138 Missed 44 | . 5 2 37 Hits 127 | . 14 12 101 Projectile 127 | . 14 12 101 Critical Strikes 1 | . 1 . . Actively Blocked 1 | . . . 1 Damage Taken 1722 | . 143 92 1487 Core 254 | . 20 14 220 Absorbed by Shields . | . . . . Redirected to Shielding 51 | . 18 11 22 Ignored by Resistances 467 | . 42 29 396 Core Remaining (%) 100 | 100 . . . Volleys Fired 89 | . 10 5 74 Largest 2 | . 2 2 2 Hottest 110 | . 70 70 110 Shots Fired 168 | . 20 10 138 Gun 140 | . 20 10 110 Cannon 21 | . . . 21 Launcher 5 | . . . 5 Special 2 | . . . 2 Kinetic 96 | . 10 5 81 Thermal 67 | . 10 5 52 Explosive 5 | . . . 5 Electromagnetic . | . . . . Robot Hit Streak 58 | . 18 23 58 Robot Miss Streak 1 | . 1 1 1 Penetration Max . | . . . . Secondary Targets . | . . . . Shots Hit Robots 131 | . 18 7 106 Core Hits 44 | . 9 4 31 Critical Kills 2 | . . . 2 Critical Parts Destroyed . | . . . . Critical Strikes 10 | . 1 . 9 Burn 5 | . 1 . 4 Meltdown 1 | . . . 1 Destroy 2 | . . . 2 Blast 2 | . . . 2 Melee Attacks . | . . . . Impact . | . . . . Slashing . | . . . . Piercing . | . . . . Sneak Attacks . | . . . . Combat Hostiles . | . . . . Follow-up Attacks . | . . . . Damage Inflicted 1874 | . 230 89 1555 Guns 1518 | . 230 89 1199 Cannons 356 | . . . 356 Explosions . | . . . . Melee . | . . . . Ramming . | . . . . Kinetic 1045 | . 118 25 902 Thermal 829 | . 112 64 653 Explosive . | . . . . Electromagnetic . | . . . . Impact . | . . . . Slashing . | . . . . Piercing . | . . . . Highest Corruption . | . . . . Average Corruption . | . . . . Corruption Purged . | . . . . Corruption Blocked . | . . . . Overload Shots . | . . . . Overflow Damage 5 | . . . 5 Projectiles 5 | . . . 5 Explosions . | . . . . Melee . | . . . . Knockbacks 5 | . . . 5 Impact . | . . . . Kinetic 5 | . . . 5 Secondary . | . . . . Self-Inflicted Damage 19 | . . . 19 Shots 1 | . . . 1 Rammed . | . . . . Targets Rammed . | . . . . Kicked . | . . . . Crushed . | . . . . Highest Temperature 144 | . 144 27 15 Average Temperature 28 | . 61 13 6 Received Heat Transfer 507 | . 123 42 342 Siege Activations . | . . . . Martial Activations . | . . . . Shielding Activations . | . . . . Robots Disrupted . | . . . . Combat Hostiles . | . . . . Robots Corrupted . | . . . . Combat Hostiles . | . . . . Parts Fried . | . . . . Impact Corruptions . | . . . . Robots Melted 1 | . . . 1 Combat Hostiles 1 | . . . 1 Parts Melted 6 | . . . 6 Heat Transferred 2444 | . 407 185 1852 Parts Sabotaged . | . . . . Parts Stolen . | . . . . Parts Stripped . | . . . . Power Chain Reactions . | . . . . Alert | -11 -10 -10 -10 ------- Run | Yrd Mat Min Sub Maximum Alert Level . | . . . . Low Security (%) 100 | 100 100 100 . Level 1 . | . . . . Level 2 . | . . . . Level 3 . | . . . . Level 4 . | . . . . Level 5 . | . . . . High Security . | . . . . Max Security . | . . . . Peak Influence 70 | . 50 70 . Initial 6 | . . 6 . Average 6 | . 7 5 . Influence Increases 363 | . 103 100 160 Destroy 0b10 Robot/C 260 | . 80 80 100 Destroy Leader 40 | . 20 20 . Successful Hack 3 | . 3 . . Lose Combat Pursuer 60 | . . . 60 Influence Decreases 363 | . 83 120 160 Entered New Map 14 | . . 14 . Time Decay 349 | . 83 106 160 Squads Dispatched 2 | . 1 1 . Investigation 2 | . 1 1 . Extermination . | . . . . Reinforcement . | . . . . Assault . | . . . . Garrison . | . . . . Intercept . | . . . . Searches Triggered . | . . . . Construction Impeded . | . . . . Haulers Reinforced . | . . . . Active Scanning Responses . | . . . . Cargo Convoy Interrupts . | . . . . Stealth | -11 -10 -10 -10 --------- Run | Yrd Mat Min Sub Distress Signals 1 | . 1 . . Communications Jammed . | . . . . Distress Signals . | . . . . Times Spotted 32 | . 8 5 19 Peak Tracking Total 3 | . 3 3 3 Tactical Retreats 2 | . . . 2 Traps | -11 -10 -10 -10 ------- Run | Yrd Mat Min Sub Traps Triggered 5 | . 1 . 4 Indirectly . | . . . . Trap Hack Attempts . | . . . . Triggered . | . . . . Disarmed . | . . . . Reprogrammed . | . . . . Reused . | . . . . Traps Extracted . | . . . . Installed . | . . . . Triggered . | . . . . Machines | -11 -10 -10 -10 ---------- Run | Yrd Mat Min Sub Machines Disabled 3 | . . . 3 Max in Single Turn 1 | . . . 1 Machines Repaired . | . . . . Machines Dismantled . | . . . . Machines Sabotaged . | . . . . Overloaded Fab Kills . | . . . . Hacking | -11 -10 -10 -10 --------- Run | Yrd Mat Min Sub Machines Accessed 9 | . 4 1 4 Terminals 3 | . 3 . . Fabricators . | . . . . Repair Stations . | . . . . Recycling Units 1 | . 1 . . Scanalyzers . | . . . . Garrison Access . | . . . . Total Hacks 25 | . 15 1 9 Successful 18 | . 8 1 9 Failed 7 | . 7 . . Catastrophic . | . . . . Database Lockouts . | . . . . Manual . | . . . . Terminals 11 | . 11 . . Fabricators . | . . . . Repair Stations . | . . . . Recycling Units 4 | . 4 . . Scanalyzers . | . . . . Garrison Access . | . . . . Terminal Hacks 17 | . 7 1 9 Record 7 | . 1 . 6 Prototype ID Bank 1 | . 1 . . Open Door 2 | . . 1 1 Branch Access Points 1 | . 1 . . Emergency Access Points 1 | . 1 . . Locate Traps 2 | . 2 . . Zone Layout 1 | . 1 . . Proto ID Catalog 1 | . . . 1 Release Object 1 | . . . 1 Fabricator Hacks . | . . . . Repair Station Hacks . | . . . . Recycling Unit Hacks 1 | . 1 . . Retrieve Components 1 | . 1 . . Scanalyzer . | . . . . Garrison Access Hacks . | . . . . Unauthorized Hacks . | . . . . Terminals . | . . . . Fabricators . | . . . . Repair Stations . | . . . . Recycling Units . | . . . . Scanalyzers . | . . . . Garrison Access . | . . . . Data Cores Recovered . | . . . . Used . | . . . . Hacking Detections 4 | . 4 . . Full Trace Events . | . . . . Feedback Events . | . . . . Feedback Blocked . | . . . . Robot Schematics Acquired . | . . . . Robots Built . | . . . . Authchips . | . . . . Time . | . . . . Total Robot Build Rating . | . . . . Part Schematics Acquired . | . . . . Parts Built . | . . . . Authchips . | . . . . Time . | . . . . Total Part Build Rating . | . . . . Parts Repaired . | . . . . Time . | . . . . Parts Recycled . | . . . . Recycled Matter . | . . . . Retrieved Matter . | . . . . Retrieved Components 7 | . 7 . . Parts Scanalyzed . | . . . . Part Schematics Acquired . | . . . . Parts Damaged . | . . . . Bothacking | -11 -10 -10 -10 ------------ Run | Yrd Mat Min Sub Used RIF Installer . | . . . . Robots Hacked . | . . . . Non-combat . | . . . . Combat . | . . . . Robot Hacks Applied . | . . . . Relay Couplers Released . | . . . . Fabnet Peak Effective % . | . . . . Robots Rewired . | . . . . Allies Hacked . | . . . . Hacks Repelled . | . . . . Allies | -11 -10 -10 -10 -------- Run | Yrd Mat Min Sub Total Allies . | . . . . Largest Group . | . . . . Highest-Rated Group . | . . . . Highest-Rated Ally . | . . . . Total Orders . | . . . . Ally Attacks . | . . . . Total Damage . | . . . . Kills . | . . . . Allies Corrupted . | . . . . Allies Melted . | . . . . Intel | -11 -10 -10 -10 ------- Run | Yrd Mat Min Sub Active Infowar (turns) . | . . . . Robot Analysis Total . | . . . . Derelict Logs Recovered 4 | . . 2 2 Drone Launches . | . . . . Drone Recoveries . | . . . . Exploration | -11 -10 -10 -10 ------------- Run | Yrd Mat Min Sub Turns Passed 6580 | 63 574 1313 4630 Spaces Moved 2825 | 46 313 637 1829 Core 43 | 10 . . 33 Treads 316 | 6 . . 310 Legs . | . . . . Wheels 2466 | 30 313 637 1486 Hover . | . . . . Flight . | . . . . Fastest Speed 50 | 50 100 200 130 Average Speed 217 | 102 160 200 235 Slowest Speed 1550 | 160 200 200 1550 Overloaded Moves . | . . . . Propulsion Burnouts . | . . . . Robots Hopped . | . . . . Potential Cave-ins . | . . . . Cave-ins Triggered . | . . . . Exploration Rate (%) 57 | 4 42 100 85 Regions Visited 3 Branch Regions 2 Pre-discovered Areas 3 | . . 2 1 Known Exits Taken 1 | . 1 . . Unknown Exits Taken 2 | 1 . 1 . Scrap Searched 1 | . . 1 . Spaces Dug 5 | . . . 5 Terrain Destroyed 17 | . . . 17 Melee . | . . . . Projectile . | . . . . AOE 17 | . . . 17 Terrain Rammed . | . . . . Walls Destroyed . | . . . . Machines Disabled . | . . . . Actions | -11 -10 -10 -10 --------- Run | Yrd Mat Min Sub Total 3093 | 61 367 667 1998 Wait 67 | . 18 21 28 Move 2822 | 45 312 636 1829 Hop . | . . . . Pick Up 39 | 10 14 5 10 Fast Attach 5 | . . . 5 Attach 18 | 6 3 . 9 Detach . | . . . . Swap 32 | . 4 . 28 Drop 21 | . 6 . 15 Fire 89 | . 10 5 74 Melee . | . . . . Ram . | . . . . Kick . | . . . . Crush . | . . . . Escape Stasis . | . . . . Rewire . | . . . . Trap . | . . . . Miscellaneous . | . . . . Route ------- -11/Scrapyard -10/Materials (discovered 2 exits: *Min x2) -10/Mines (discovered 3 exits: [*Mat x2] / *Sub) -10/Subcaves (discovered 3 exits: [*Mat x2] / *Rec) History --------- Turn | Location | Event 13 | -11/Scrapyard | Discovered new exit (range 16) 64 | -11/Scrapyard | Entered Materials 72 | -10/Materials | Discovered new exit (range 16) 313 | -10/Materials | Build established: Mutant 375 | -10/Materials | Identified exit to Mines 638 | -10/Materials | Entered Mines 811 | -10/Mines | YI-UF0 nonchalantly dropped a Grenade Launcher on the ground 837 | -10/Mines | Learned location of Storage (-9) 1182 | -10/Mines | Discovered new exit (range 8) 1191 | -10/Mines | Met a Derelict shopkeep closing up shop 1635 | -10/Mines | Learned Materials interactive machine intel 1659 | -10/Mines | Discovered new exit (range 3) 1937 | -10/Mines | Discovered new exit (range 6) 1951 | -10/Mines | Entered Subcaves 1952 | -10/Subcaves | Approached by a straggling Scientist 2264 | -10/Subcaves | Learned Materials interactive machine intel 2353 | -10/Subcaves | Identified exit to Recycling 3385 | -10/Subcaves | Discovered new exit (range 13) 3442 | -10/Subcaves | Visited 4L-MR0's lab 3471 | -10/Subcaves | Found Rainbow Chip 3662 | -10/Subcaves | Found SUBCON Basin 3725 | -10/Subcaves | Discovered new exit (range 15) 3774 | -10/Subcaves | A Subdweller sparked back to life 3774 | -10/Subcaves | A Subdweller sparked back to life 3774 | -10/Subcaves | A Subdweller sparked back to life 3807 | -10/Subcaves | Core integrity fell below 50% 3844 | -10/Subcaves | Found Meta Core 3846 | -10/Subcaves | Attached Meta Core, gained temporary slots: Propulsion, Utility, Weapon 3936 | -10/Subcaves | A swath of the cavern ceiling suddenly collapsed 4759 | -10/Subcaves | Shifting Twisted Machinery released Mak. Light Armor Plating 4969 | -10/Subcaves | Shifting Twisted Machinery released Sub. Optics 5102 | -10/Subcaves | Visited Clippyterm 5107 | -10/Subcaves | Learned location of Extension (-4) 5107 | -10/Subcaves | Learned Factory emergency access door positions 5946 | -10/Subcaves | Core integrity fell below 20% 6581 | -10/Subcaves | Destroyed by P6-M5S(R) with Subdweller Machine Gun Last Messages --------------- 05935_ Acquired 2 matter. 05937_ Machine disabled. 05940_ Autobeam Turret suffers critical hit (Blast). 05940_ Autobeam Turret destroyed. 05948_ Machine disabled. 05957_ Destroyed Autobeam. 05957_ Autobeam Turret suffers critical hit (Blast). 05957_ Autobeam Turret destroyed. 05972_ Acquired Spk. Treads. 05977_ Acquired Dirty Datajack. 05978_ Acquired 49 matter. 05992_ Acquired 1 matter. 05995_ Acquired 7 matter. 06558_ Lgt. Treads destroyed. 06568_ P6-M5S(R) knocked back. 06573_ Hrd. Medium Armor Plating destroyed. 06574_ CR-2GE(R) knocked back. 06577_ P6-M5S(R) knocked back. Map ----- +----------------------------------------------------+ | # ####?## #?# #??????????????????# | | ### ### ####?####??????????????????# | | ??### % #?????????????????????????## | | ????### ]! #????????????????????# ## | | ??????# % #####????????????????# | | ?????## ## ##???????????# ### # | | ?????# ## ######??????# ####??## # | | ?????######=| ##?????## ????????# | | ??????????#% ##?????# ??????##### | | ??????????# #?????????????# | | ??????????# & #???????????# | | ??????????## ## ##??????? ## | | ???????????##### ##????? ###### | | ????????????#### % #?????? ?????# | | ????????????# " ##????? ??????# | | ?????###????## " """#??????? ???????## | | ????## #?????## """###?????###?????????? | | ?#### #?????# ## """" #????????????????? | | ## #?????## ### "" """" ?????????????????? | | # #??????# ###""" ## ## ?????????????????? | | ##????## "##""" ####???????????????????? | | ######" ####"""" #?????????????????????# | | """ ##??#"""" "#?##??????????????????? | | """ ##??##" ""## #??????????????????? | | "" ##??## "##""##?????????????????? | | "" #" ""##@# "#"##??????????????? | | ### "" "" % #?????????????? | | ####! " """"" ###??????????????? | | ### "" """ #""#" %##RR #????????????????? | | "## ## """""########??## ##????????????????? | | ### " ###########?????###?????????????????? | | ## " ##???#"""""#?????????????????????????? | | #" ##????#""X""#?????????????????????????? | | #" ####?????#" "#?????????????????????????? | | #" ####????????### ###?????????????????????????? | | #"# #??############ ##??????????????????????????? | | ## #?## ## ##?????????????????????????? | | ?# ### # ##????????????????????????? | | ?#" #????????????????????????? | | ##"" ##????????????????????????? | | #"" # # ##?????????????????????????? | | " #### ####### #??????????????????????????? | | ##??### #?????###??????????????????????????? | | ##?????## #??#####???????????????????????????? | | ##??????## #?## #??????###????#####?###?????? | | #??????## ### #??????# ###### ### ##????? | | #?????## #?###### #????? | | #?????# #### ##????? | | ######## ### ## ##### ##?????? | | # ## ## ## ###### ### #??## ####??????? | +----------------------------------------------------+ Best States ------------- Heat Dissipation 25 Energy Generation 17 Energy Capacity 250 Matter Stores 300 Matter Capacity 300 Sight Range 16 Terrain Scan Density 10 Armor Coverage 225 Resistance: KI 20 Resistance: TH 20 Resistance: EX 20 Resistance: EM 20 Resistance: I 20 Resistance: S 20 Resistance: P 20 Propulsion Shielding 33 Evasion (%) 40 Recoil Reduction 2 Offensive Hacking 10 Item Schematics ----------------- None Robot Schematics ------------------ None Fabricated ------------ Nothing Repaired ---------- Nothing Alien Tech Used ----------------- None Achievements -------------- None Challenges ------------ None Game ------ Seed MassBombardmentLance Manual? 0 Play Time 00:31:48 Cumulative 98.4 hours Start 2025.08.25 @ 23:06:00 End 2025.08.25 @ 23:37:22 Sessions 1 Manual Loads 0 Difficulty Adventurer Special Mode None Game No. 38 Rogue 18 Adventurer 20 Explorer 0 Win Type - Total 0 Types 0/0/0/0/0/0/0/0/0/0 Lore% 30 Gallery% 39 Achievement% 35 Wizard Run 0 Options --------- Layout 1 ASCII 0 Keyboard 0 Movement Mouse Keybinds 0 Fullscreen 0 Font 20/SmallcapsGlow Map View 50x35 Zoom Use 0% Tactical HUD 1 Map Filters NONE Filters NONE Steam 1 RUN: b9d84f53-0397-433a-959a-09c5302a8769